bitfinex-derivatives/quotes_ETHF0:USTF0_20251204
["timestamp","ask_amount","ask_price","bid_price","bid_amount"]
[1764846942069,1.4901,3191.1,3191.0,1.62967]
[1764846944174,4.7576,3191.4,3191.3,1.4809]
[1764846944671,4.7576,3191.4,3191.3,0.7332]
[1764846946275,4.7576,3191.4,3191.3,1.4809]
[1764846946475,4.7576,3191.4,3191.3,0.7332]
[1764846946679,4.7576,3191.4,3191.3,1.4809]
[1764846947973,3.2078,3191.4,3191.3,1.4809]
[1764846948171,4.7576,3191.8,3191.7,1.63754]
[1764846948369,5.53830503,3191.8,3191.7,1.63754]
[1764846949881,3.9845,3191.8,3191.7,1.63754]
[1764846950083,4.7576,3191.8,3191.7,1.63754]
[1764846950580,4.7576,3191.8,3191.7,0.88984]
[1764846951078,4.7576,3191.8,3191.7,1.63754]
[1764846952678,3.2078,3191.8,3191.7,1.63754]
[1764846952873,4.7576,3191.8,3191.7,1.63754]
[1764846954281,3.9845,3191.8,3191.7,1.63754]
[1764846955278,3.9845,3191.8,3191.5,0.4264]
[1764846955279,0.0046994,3191.9,3191.8,1.63753]
[1764846955587,0.7813994,3191.9,3191.8,1.63753]
[1764846955781,1.5544994,3191.9,3191.8,1.63753]
[1764846956176,1.5544994,3191.9,3191.8,0.88983]
[1764846956378,1.5544994,3191.9,3191.8,0.15663]
[1764846958985,1.5544994,3191.9,3191.8,0.88983]
[1764846959289,1.5544994,3191.9,3191.8,1.63753]
[1764846959882,0.7813994,3191.9,3191.8,1.63753]
[1764846961390,1.5544994,3191.9,3191.8,0.15663]
[1764846961784,1.5544994,3191.9,3191.8,0.88983]
[1764846962385,1.5544994,3191.9,3191.8,0.15663]
[1764846963088,0.0046994,3191.9,3191.8,1.63753]
[1764846963294,1.5544994,3191.9,3191.8,0.15663]
[1764846964899,1.5544994,3191.9,3191.8,0.88983]
[1764846965195,1.5544994,3191.9,3191.8,1.62703]
[1764846967195,0.0046994,3191.9,3191.8,1.62703]
[1764846969605,1.49939813,3192.5,3192.4,1.4485]
[1764846970198,1.93059813,3192.5,3192.4,0.7113]
[1764846970782,1.93059813,3192.5,3192.4,1.4485]
[1764846970986,0.00369813,3192.5,3192.4,3.04492479]
[1764846972594,0.75809813,3192.5,3192.4,3.04492479]
[1764846973299,1.49939813,3192.5,3192.4,3.04492479]
[1764846973501,1.93059813,3192.5,3192.4,0.8679]
[1764846973686,1.93059813,3192.5,3192.4,0.1566]
[1764846975699,1.93059813,3192.5,3192.4,0.8679]
[1764846976300,1.93059813,3192.5,3192.4,0.1566]
[1764846979798,0.00369813,3192.5,3192.4,1.6051]
[1764846979992,0.75809813,3192.5,3192.4,3.04492479]
[1764846980191,1.49939813,3192.5,3192.4,1.6051]
[1764846980402,1.93059813,3192.5,3192.4,0.8679]
[1764846981802,1.93059813,3192.5,3192.4,1.6051]
[1764846983999,1.93059813,3192.5,3192.4,0.8679]
[1764846984199,1.93059813,3192.5,3192.4,0.1566]
[1764846985204,1.49939813,3192.5,3192.4,1.6051]
[1764846985593,1.93059813,3192.5,3192.4,1.6051]
[1764846986304,1.93059813,3192.5,3192.4,0.8679]
[1764846986803,1.93059813,3192.5,3192.4,1.6051]
[1764846987105,1.93059813,3192.5,3192.4,0.8679]
[1764846987309,1.93059813,3192.5,3192.4,0.1566]
[1764846988108,1.93059813,3192.5,3192.4,0.8679]
[1764846988303,1.93059813,3192.5,3192.4,0.1566]
[1764846990007,1.93059813,3192.5,3192.4,0.8679]
[1764846993606,1.4647,3192.2,3192.1,0.0046994]
[1764846993812,2.90452479,3192.2,3192.1,0.0046994]
[1764846994003,3.68467822,3192.2,3192.1,0.0046994]
[1764846994207,1.4647,3191.9,3191.8,0.15663]
[1764846994612,1.4647,3191.9,3191.8,0.88833]
[1764846994810,1.4647,3191.9,3191.8,1.65233]
[1764846995913,1.4647,3191.9,3191.8,0.88833]
[1764846996213,1.4647,3191.9,3191.8,0.15663]
[1764846996404,1.4647,3191.9,3191.8,0.88833]
[1764846998816,1.4647,3191.9,3191.8,0.15663]
[1764847000118,1.4647,3191.9,3191.8,1.65233]
[1764847000415,1.4647,3191.9,3191.8,0.88833]
[1764847005422,1.4647,3191.9,3191.8,0.15663]
[1764847018235,2.24428801,3191.9,3191.8,0.15663]
[1764847020931,1.4384,3191.6,3191.5,0.0046994]
[1764847021132,1.4384,3191.6,3191.5,0.7399994]
[1764847021525,1.4384,3191.6,3191.5,1.5164994]
[1764847023135,1.4384,3191.6,3191.5,1.6731494]
[1764847029041,1.4384,3191.6,3191.5,0.8966494]
[1764847029836,1.4384,3191.6,3191.5,0.0046994]
[1764847030242,2.21878493,3191.6,3191.5,0.0046994]
[1764847030443,43.01878493,3191.6,3191.5,0.0046994]
[1764847034743,1.5043,3191.1,3191.0,0.15667]
[1764847043354,1.5043,3191.1,3191.0,1.60757]
[1764847045050,3.2078,3191.2,3190.7,0.0046994]
[1764847045051,1.5043,3190.8,3190.7,0.0046994]
[1764847046558,2.28392794,3190.8,3190.7,0.0046994]
[1764847048251,1.5043,3190.8,3190.7,0.0046994]
[1764847051858,1.9643,3191.0,3190.7,0.0046994]
[1764847052059,1.5043,3191.0,3190.7,0.0046994]
[1764847052260,1.5043,3191.0,3190.9,1.4509]
[1764847053562,1.9643,3191.0,3190.9,1.4509]
[1764847055760,1.9643,3191.0,3190.9,0.7467]
[1764847056851,1.4825,3190.8,3190.7,0.7734994]
[1764847057051,1.4825,3190.8,3190.7,0.0046994]
[1764847058964,4.6903,3190.8,3190.7,0.0046994]
[1764847059365,5.47016898,3190.8,3190.7,0.0046994]
[1764847063668,5.47016898,3190.8,3190.7,0.0046994]
[1764847064069,2.26236898,3190.8,3190.7,0.0046994]
[1764847064267,5.47016898,3190.8,3190.7,0.0046994]
[1764847070460,1.8604,3190.5,3190.4,0.00355322]
[1764847070773,1.8604,3190.5,3189.6,3.2078]
[1764847070774,0.7263,3189.7,3189.6,4.89024]
[1764847071471,1.8604,3190.0,3189.9,1.5257]
[1764847071671,1.86347287,3190.0,3189.9,1.52812637]
[1764847072374,1.44077287,3190.0,3189.9,1.52812637]
[1764847073274,1.86347287,3190.0,3189.9,1.52812637]
[1764847073975,0.72937287,3190.0,3189.9,1.52812637]
[1764847074178,1.86347287,3190.0,3189.9,0.75602637]
[1764847075284,1.86347287,3190.0,3189.9,0.00242637]
[1764847076588,1.86347287,3190.0,3189.9,0.75602637]
[1764847077295,1.86347287,3190.0,3189.9,0.00242637]
[1764847078587,1.4377,3189.4,3189.3,0.1614494]
[1764847079682,1.4377,3189.4,3189.3,0.91886851]
[1764847080689,1.4377,3189.4,3189.3,0.16526851]
[1764847081584,1.4377,3189.4,3189.3,0.00851851]
[1764847081783,2.21881409,3189.4,3189.3,0.00851851]
[1764847082490,1.4377,3189.4,3189.3,0.00851851]
[1764847082985,1.4377,3189.4,3189.3,1.53421851]
[1764847083687,1.47167287,3190.0,3189.9,1.4889]
[1764847083893,1.47167287,3190.0,3189.9,2.93092383]
[1764847083894,0.72377287,3190.0,3189.9,2.93092383]
[1764847085282,0.00307287,3190.0,3189.9,2.93092383]
[1764847086596,0.72377287,3190.0,3189.9,2.93092383]
[1764847086789,0.00307287,3190.0,3189.9,2.93092383]
[1764847086990,0.72377287,3190.0,3189.9,2.93092383]
[1764847088485,1.47167287,3190.0,3189.9,2.93092383]
[1764847088698,0.72377287,3190.0,3189.9,2.93092383]
[1764847089492,0.00307287,3190.0,3189.9,2.93092383]
[1764847091295,0.00307287,3190.0,3189.9,1.4889]
[1764847092097,0.00307287,3190.0,3189.9,1.64563]
[1764847093093,3.9285,3190.5,3190.4,1.4889]
[1764847093395,4.6764,3190.5,3190.4,1.4889]
[1764847093990,4.6796294,3190.5,3190.4,1.4889]
[1764847095897,3.2110294,3190.5,3190.4,1.4889]
[1764847096091,0.0032294,3190.5,3190.4,1.6456]
[1764847096490,0.7239294,3190.5,3190.4,1.6456]
[1764847099004,0.0032294,3190.5,3190.4,1.6456]
[1764847099700,0.0032294,3190.5,3190.4,4.8534]
[1764847104001,0.0032294,3190.5,3190.4,1.6456]
[1764847104203,0.0032294,3190.5,3190.4,4.8534]
[1764847105106,1.4732994,3191.1,3191.0,1.4889]
[1764847105504,0.0046994,3191.1,3191.0,2.08007]
[1764847106106,0.00758495,3191.1,3191.0,2.08007]
[1764847114211,1.50388495,3191.1,3191.0,1.64177]
[1764847114401,0.72828495,3191.1,3191.0,2.08017]
[1764847116300,1.50388495,3191.1,3191.0,1.64177]
[1764847116598,1.50388495,3191.1,3191.0,0.88117]
[1764847117011,1.50388495,3191.1,3191.0,1.64177]
[1764847117706,1.4801,3190.6,3190.5,1.6418]
[1764847118008,1.4801,3190.6,3190.5,0.8812]
[1764847118208,1.4801,3190.6,3190.5,0.1567]
[1764847118714,1.4801,3190.6,3190.5,0.8812]
[1764847119311,1.4801,3190.6,3190.5,1.6418]
[1764847119611,1.4801,3190.6,3190.5,0.8812]
[1764847120512,1.4801,3190.6,3190.5,1.6418]
[1764847120711,40.8,3190.9,3190.8,1.4851]
[1764847121916,1.4591,3190.9,3190.8,1.4851]
[1764847122110,4.67448495,3191.1,3191.0,1.5337]
[1764847122316,46.25579014,3191.1,3191.0,1.5337]
[1764847122819,46.25579014,3191.1,3191.0,0.757]
[1764847123916,46.25579014,3191.1,3191.0,1.5337]
[1764847124109,46.25579014,3191.1,3191.0,0.757]
[1764847124507,46.25579014,3191.1,3191.0,1.5337]
[1764847125119,45.47448495,3191.1,3191.0,1.5337]
[1764847125419,46.25622397,3191.1,3191.0,1.5337]
[1764847125715,46.25622397,3191.1,3191.0,1.69037]
[1764847125716,4.67448495,3191.1,3191.0,1.69037]
[1764847126916,3.21538495,3191.1,3191.0,1.69037]
[1764847127118,3.21538495,3191.1,3191.0,2.11287]
[1764847127316,4.67448495,3191.1,3191.0,0.91367]
[1764847127618,4.67448495,3191.1,3191.0,1.69037]
[1764847130118,3.21538495,3191.1,3191.0,1.69037]
[1764847130318,3.94608495,3191.1,3191.0,2.11287]
[1764847130514,4.67448495,3191.1,3191.0,1.69037]
[1764847136224,4.67448495,3191.1,3191.0,0.15667]
[1764847136820,4.67448495,3191.1,3191.0,0.91367]
[1764847137218,4.67448495,3191.1,3191.0,0.15667]
[1764847139531,4.67448495,3191.1,3191.0,0.91367]
[1764847140228,1.46668495,3191.1,3191.0,0.91367]
[1764847142425,0.00758495,3191.1,3191.0,2.11287]
[1764847142830,0.73828495,3191.1,3191.0,2.11287]
[1764847143135,1.46668495,3191.1,3191.0,2.11287]
[1764847143330,1.46668495,3191.1,3191.0,1.69037]
[1764847146632,1.46668495,3191.1,3191.0,0.15667]
[1764847147638,1.46668495,3191.1,3191.0,0.90737]
[1764847153954,1.46668495,3191.1,3191.0,0.15667]
[1764847154147,2.55619398,3191.1,3191.0,0.15667]
[1764847154353,2.24882085,3191.1,3191.0,0.15667]
[1764847156056,5.45662085,3191.1,3191.0,0.15667]
[1764847158058,0.7304,3190.5,3190.4,1.6822]
[1764847159862,1.8846,3190.5,3190.4,1.6822]
[1764847160062,1.4476,3190.5,3190.4,1.6822]
[1764847162260,1.8846,3190.5,3190.4,0.9074]
[1764847162462,0.437,3191.0,3190.4,1.6822]
[1764847162763,2.24027117,3190.9,3190.8,0.7507]
[1764847163462,5.44807117,3190.9,3190.4,0.1567]
[1764847163658,4.6554,3190.9,3190.4,0.1567]
[1764847163961,0.7304,3190.5,3190.4,1.6822]
[1764847165559,3.9382,3190.9,3190.8,0.7507]
[1764847165766,5.44798703,3190.9,3190.8,1.5255]
[1764847166063,5.44798703,3190.9,3190.8,1.68218]
[1764847166260,0.7304,3189.9,3189.8,4.89003]
[1764847166561,1.4476,3189.9,3189.8,4.11523]
[1764847171564,1.4476,3189.9,3189.8,4.89003]
[1764847172068,3.2078,3190.5,3190.4,1.5255]
[1764847172270,4.6554,3190.9,3190.8,0.7507]
[1764847172473,5.4471512,3190.9,3190.8,0.7507]
[1764847173374,0.7304,3190.6,3190.5,1.9046]
[1764847174365,1.4476,3190.6,3190.5,1.5255]
[1764847178771,1.9109,3190.5,3190.4,0.1567]
[1764847178973,1.4826,3189.9,3189.8,1.58763]
[1764847179165,1.4826,3189.8,3189.7,3.2078]
[1764847179670,1.4826,3189.4,3189.3,4.64721851]
[1764847180976,0.7222,3189.4,3189.3,4.80397851]
[1764847181270,0.7222,3189.4,3189.3,4.08347851]
[1764847181471,1.4826,3189.4,3189.3,4.80397851]
[1764847183973,1.4826,3189.4,3189.3,4.80397851]
[1764847184662,40.8,3189.8,3189.7,1.4309]
[1764847185763,40.8,3189.8,3189.7,0.7104]
[1764847185964,1.4826,3190.8,3190.0,0.4619]
[1764847186177,1.4826,3190.8,3190.7,1.4264]
[1764847187076,1.4826,3190.8,3190.7,0.7104]
[1764847187768,1.4826,3190.8,3190.7,1.4264]
[1764847188479,0.7222,3190.8,3190.7,1.4264]
[1764847190580,4.7201,3191.0,3190.9,1.423]
[1764847192080,4.7201,3191.0,3190.9,1.57968]
[1764847193182,5.1707,3191.0,3190.9,1.57968]
[1764847194076,3.9673,3191.0,3190.9,1.57968]
[1764847194285,4.7201,3191.0,3190.9,1.57968]
[1764847194782,5.1707,3191.0,3190.9,1.57968]
[1764847195175,4.7201,3191.0,3190.9,1.57968]
[1764847195379,3.9606,3191.0,3190.9,1.57968]
[1764847196278,4.7201,3191.0,3190.9,1.57968]
[1764847197485,5.1707,3191.0,3190.9,0.86368]
[1764847198085,5.1707,3191.0,3190.9,0.15668]
[1764847198487,1.5123,3190.6,3190.5,3.2078]
[1764847198679,1.5123,3190.6,3190.5,3.9148]
[1764847199184,1.5123,3190.6,3190.5,3.2078]
[1764847199383,1.9629,3190.5,3190.4,0.1567]
[1764847199781,1.9629,3190.5,3190.4,0.8637]
[1764847201284,1.5123,3190.1,3190.0,3.9148]
[1764847201482,1.5123,3189.7,3189.6,3.2078]
[1764847201779,0.7528,3189.5,3189.4,2.14790252]
[1764847201983,1.5123,3189.5,3189.4,2.86390252]
[1764847202191,1.5123,3189.5,3189.4,1.423]
[1764847202387,1.9629,3189.5,3189.4,1.423]
[1764847202583,0.7528,3189.5,3189.4,1.57975]
[1764847202787,1.9629,3189.5,3189.4,0.86375]
[1764847203483,1.9629,3189.5,3189.4,1.57975]
[1764847205379,1.9629,3189.5,3189.4,0.15675]
[1764847205582,1.481,3189.4,3189.3,0.00851851]
[1764847206177,1.481,3189.4,3189.3,1.47421851]
[1764847206773,1.481,3189.4,3189.3,0.73411851]
[1764847206975,0.769,3189.4,3189.3,1.63097851]
[1764847207490,1.481,3189.4,3189.3,1.63097851]
[1764847210788,1.481,3189.4,3189.3,0.16527851]
[1764847212591,1.481,3189.4,3189.3,0.89087851]
[1764847213001,1.481,3189.4,3189.3,0.16527851]
[1764847214697,4.6888,3189.7,3189.6,0.7256]
[1764847215296,4.6888,3189.7,3189.6,1.62244]
[1764847215995,4.6888,3189.7,3189.6,0.88234]
[1764847216194,4.6888,3189.7,3189.6,0.15674]
[1764847226508,1.481,3189.4,3189.3,0.00851851]
[1764847227600,1.481,3189.4,3189.3,0.89087851]
[1764847230313,1.481,3189.4,3189.3,1.63097851]
[1764847230508,0.769,3189.4,3189.3,1.63097851]
[1764847230812,4.6888,3189.7,3189.6,0.7256]
[1764847231000,5.48170773,3189.7,3189.6,0.7256]
[1764847231501,4.00070773,3189.7,3189.4,0.15675]
[1764847231700,1.56190773,3189.6,3189.5,2.08545]
[1764847231912,3.9768,3189.7,3189.6,1.62244]
[1764847232113,4.77073085,3189.7,3189.6,1.62244]
[1764847232602,5.48273085,3189.7,3189.6,1.62244]
[1764847234512,2.27493085,3189.7,3189.6,1.62244]
[1764847235307,1.56293085,3189.7,3189.6,3.06334252]
[1764847235509,4.7053,3189.9,3189.8,1.67663]
[1764847235808,5.49753245,3189.9,3189.8,1.67663]
[1764847237008,4.77203245,3189.9,3189.8,1.67663]
[1764847237313,5.49753245,3189.9,3189.8,1.67663]
[1764847239315,4.7053,3189.9,3189.8,1.67663]
[1764847239508,4.7053,3189.9,3189.8,0.15673]
[1764847240112,4.7053,3189.9,3189.8,1.67663]
[1764847240611,4.7053,3189.9,3189.8,0.15673]
[1764847241912,1.4975,3189.9,3189.8,0.15673]
[1764847242515,1.5202,3189.4,3189.3,0.00851851]
[1764847242815,2.31024263,3189.4,3189.3,0.00851851]
[1764847243110,1.5202,3188.6,3188.5,4.6742]
[1764847243611,42.3202,3188.9,3188.8,0.91928]
[1764847243818,42.3202,3188.9,3188.8,1.62318]
[1764847244014,42.32385371,3188.9,3188.8,1.62605365]
[1764847244918,41.57115371,3188.9,3188.8,1.62605365]
[1764847245110,0.77115371,3188.9,3188.8,1.62605365]
[1764847247119,1.52385371,3188.9,3188.8,1.62605365]
[1764847248427,0.00365371,3188.9,3188.8,1.62605365]
[1764847248718,0.77115371,3188.9,3188.8,1.62605365]
[1764847250527,1.52385371,3188.9,3188.8,1.62605365]
[1764847250725,1.52385371,3188.9,3188.8,0.92215365]
[1764847250926,1.52385371,3188.9,3188.8,0.15965365]
[1764847251327,1.5202,3188.6,3188.5,0.0046994]
[1764847251526,1.5202,3188.4,3188.3,0.15681]
[1764847252523,1.5202,3188.4,3188.3,0.1597311]
[1764847257327,1.5202,3187.8,3187.7,0.15683]
[1764847258229,1.5202,3187.8,3187.7,0.16061426]
[1764847258431,1.5202,3187.8,3187.7,0.92311426]
[1764847258934,1.5202,3187.8,3187.7,0.16061426]
[1764847260028,1.5202,3187.8,3187.7,0.00378426]
[1764847262731,1.9814,3188.0,3187.9,1.4664]
[1764847262938,1.9814,3188.0,3187.9,0.91933]
[1764847263130,1.9814,3188.0,3187.9,0.15683]
[1764847263437,1.9814,3188.0,3187.7,0.00378426]
[1764847263438,1.5202,3187.8,3187.7,0.00378426]
[1764847265236,5.07661758,3188.0,3187.2,3.36466]
[1764847265435,0.4259,3187.0,3186.8,3.9866]
[1764847265634,1.5005,3186.9,3186.8,4.6913]
[1764847266336,1.5005,3186.9,3186.8,4.69424645]
[1764847266534,0.7602,3186.9,3186.8,4.69424645]
[1764847267137,1.5005,3186.9,3186.8,3.98954645]
[1764847267440,1.5005,3186.9,3186.8,0.78174645]
[1764847268344,1.5005,3186.9,3186.8,1.48644645]
[1764847268539,1.5005,3186.9,3186.8,0.78174645]
[1764847269437,2.90811758,3186.9,3186.8,0.00294645]
[1764847269745,1.5005,3186.9,3186.8,0.00294645]
[1764847271039,2.90811758,3186.9,3186.8,0.00294645]
[1764847271239,1.5005,3186.4,3186.3,3.2078]
[1764847271541,1.5005,3186.2,3186.1,0.15691]
[1764847271743,1.5005,3186.2,3186.1,0.93571]
[1764847271943,1.5005,3186.2,3186.1,1.64041]
[1764847272332,1.5005,3186.2,3186.1,1.64424912]
[1764847272543,0.76421728,3186.2,3186.1,1.64424912]
[1764847272935,1.50451728,3186.2,3186.1,1.64424912]
[1764847273346,1.50451728,3186.2,3186.1,0.00383912]
[1764847274239,1.50451728,3186.2,3186.1,0.78263912]
[1764847274639,1.50451728,3186.2,3186.1,0.00383912]
[1764847274841,1.50451728,3186.2,3186.1,0.78263912]
[1764847275239,1.50451728,3186.2,3186.1,0.00383912]
[1764847276345,1.50451728,3186.2,3186.1,0.78263912]
[1764847276649,1.50451728,3186.2,3186.1,0.00383912]
[1764847277942,1.50451728,3186.2,3186.1,0.78263912]
[1764847278134,1.50451728,3186.2,3186.1,1.48733912]
[1764847280246,1.50451728,3186.2,3186.1,1.64424912]
[1764847280441,0.76421728,3186.2,3186.1,1.64424912]
[1764847280637,0.00401728,3186.2,3186.1,1.64424912]
[1764847280844,0.00401728,3186.2,3186.1,3.0518667]
[1764847286650,0.0046994,3187.2,3186.9,1.4835]
[1764847286850,0.0046994,3187.2,3186.5,0.4666]
[1764847286851,1.5051994,3187.2,3187.1,1.4835]
[1764847287054,1.5051994,3187.2,3187.1,1.64036]
[1764847287555,1.50816764,3187.2,3187.1,1.64036]
[1764847288659,0.00766764,3187.2,3187.1,1.64036]
[1764847289150,0.76786764,3187.2,3187.1,1.64036]
[1764847289954,1.50816764,3187.2,3187.1,0.15686]
[1764847290452,0.00766764,3187.2,3187.1,3.04797758]
[1764847290761,1.50816764,3187.2,3187.1,0.15686]
[1764847291056,1.5005,3186.9,3186.6,0.15689]
[1764847291252,1.5005,3186.7,3186.6,0.15689]
[1764847291449,1.5005,3186.7,3186.6,1.64039]
[1764847293258,0.7602,3186.7,3186.6,1.64039]
[1764847294455,3.9248,3186.9,3186.8,1.59428]
[1764847294761,0.00766764,3187.2,3186.5,1.84011758]
[1764847294762,1.49586764,3187.2,3187.1,0.7236]
[1764847294959,1.51102157,3187.2,3187.1,1.4374]
[1764847295259,0.72466764,3187.2,3187.1,1.4374]
[1764847295661,0.00766764,3187.2,3187.1,1.4374]
[1764847296362,0.00766764,3187.2,3187.1,3.00187758]
[1764847297466,44.0078,3187.9,3187.8,1.4374]
[1764847297655,44.79422808,3187.9,3187.8,1.4374]
[1764847297959,1.4882,3187.6,3187.5,1.59424]
[1764847298460,1.49118928,3187.6,3187.5,0.88044]
[1764847299662,0.00298928,3187.6,3187.5,2.02674]
[1764847299855,0.71998928,3187.6,3187.5,2.02674]
[1764847300462,1.49118928,3187.6,3187.5,2.02674]
[1764847300756,0.71998928,3187.6,3187.5,2.02674]
[1764847301564,0.00298928,3187.6,3187.5,2.02674]
[1764847302068,0.71998928,3187.6,3187.5,2.02674]
[1764847302258,0.00298928,3187.6,3187.5,2.02674]
[1764847302661,0.71998928,3187.6,3187.5,2.02674]
[1764847302862,1.49118928,3187.6,3187.5,2.02674]
[1764847303063,1.49118928,3187.6,3187.5,0.88044]
[1764847306468,1.49118928,3187.6,3187.5,1.59424]
[1764847310675,1.49118928,3187.6,3187.5,2.02214]
[1764847310676,0.00298928,3187.6,3187.5,2.02214]
[1764847311170,3.2078,3188.0,3187.9,1.60423]
[1764847311375,1.99106303,3188.5,3188.4,1.6042]
[1764847311673,1.21846303,3188.5,3188.4,6.21961758]
[1764847312169,1.22225495,3188.5,3188.4,10.32131065]
[1764847313268,2.71315495,3188.5,3188.4,4.81550866]
[1764847313462,1.99485495,3188.5,3188.4,4.81550866]
[1764847314375,1.22225495,3188.5,3188.4,4.81550866]
[1764847316372,0.00470684,3188.8,3188.7,0.15679]
[1764847316571,40.8,3189.2,3189.1,1.4474]
[1764847316877,1.9209,3189.5,3189.4,0.7196]
[1764847317074,1.4909,3189.2,3189.1,1.60417]
[1764847317477,0.00398603,3189.2,3189.1,1.60417]
[1764847317776,1.49488603,3189.2,3189.1,1.60417]
[1764847318676,1.49488603,3189.2,3189.1,0.87637]
[1764847322285,1.49488603,3189.2,3189.1,1.60417]
[1764847322476,1.49488603,3189.2,3189.1,3.04600936]
[1764847322477,0.00398603,3189.2,3189.1,3.04600936]
[1764847322873,1e-08,3189.2,3189.1,3.04600936]
[1764847323578,0.7726,3189.9,3189.8,1.60413]
[1764847323779,0.7726,3189.9,3189.8,3.04596936]
[1764847324181,1.484,3189.9,3189.8,3.04596936]
[1764847324480,44.0078,3190.2,3190.1,0.7159]
[1764847324782,44.01473677,3190.2,3190.1,2.88403936]
[1764847325875,44.01473677,3190.2,3190.1,2.15773936]
[1764847326379,44.01473677,3190.2,3190.1,0.7159]
[1764847327382,1.4296,3190.1,3190.0,0.87262]
[1764847328777,44.01473677,3190.2,3190.0,1.59892]
[1764847329087,0.72513677,3190.2,3190.1,1.59892]
[1764847329580,0.7182,3190.6,3190.5,1.5989]
[1764847329790,1.4296,3190.6,3190.5,4.8067]
[1764847330183,0.7182,3190.6,3190.5,5.2282]
[1764847330583,0.72200389,3190.6,3190.5,5.2282]
[1764847330786,0.00380389,3190.6,3190.5,5.2282]
[1764847331082,4.3789,3191.5,3191.4,0.7159]
[1764847331286,1.8825,3191.5,3191.4,0.7159]
[1764847331586,40.8,3191.8,3191.7,1.59884]
[1764847331782,3.2078,3191.9,3191.4,3.2078]
[1764847331783,3.2078,3191.9,3191.8,1.59883]
[1764847331982,0.4465,3192.5,3191.9,1.4422]
[1764847331983,1.4296,3192.0,3191.9,1.4422]
[1764847332382,1.43267107,3192.0,3191.9,1.4422]
[1764847334591,1.87917107,3192.0,3191.9,0.7159]
[1764847334891,1.4296,3191.4,3191.3,3.2078]
[1764847335192,1.4296,3191.4,3191.3,3.9237]
[1764847335595,1.4296,3191.4,3191.3,4.65]
[1764847335994,1.4296,3191.4,3191.3,4.65221833]
[1764847336892,1.4296,3191.4,3191.3,3.92591833]
[1764847337295,1.4296,3191.4,3191.3,3.21001833]
[1764847337590,1.4296,3191.4,3190.5,0.15669]
[1764847337591,1.4296,3190.6,3190.5,0.15669]
[1764847337792,3.2078,3190.8,3190.5,1.59889]
[1764847337989,1.4296,3190.6,3190.5,0.15669]
[1764847338689,1.4296,3190.6,3190.5,0.15955594]
[1764847339093,3.2078,3190.8,3190.7,0.7159]
[1764847339094,4.6374,3190.8,3190.7,0.7159]
[1764847339284,4.6374,3190.8,3190.7,1.4422]
[1764847340493,4.6374,3190.8,3190.7,0.7159]
[1764847340795,1.4296,3190.6,3190.5,1.60175594]
[1764847343895,1.4296,3190.6,3190.5,0.15955594]
[1764847344097,1.4296,3190.6,3190.5,0.00286594]
[1764847344601,2.21040051,3190.6,3190.5,0.00286594]
[1764847344995,43.01040051,3190.6,3190.5,0.00286594]
[1764847349094,43.01040051,3190.6,3190.0,0.15672]
[1764847349095,1.4296,3190.1,3190.0,0.15672]
[1764847349299,1.4296,3190.1,3189.8,3.2078]
[1764847349300,1.4296,3189.9,3189.8,3.2078]
[1764847349500,1.4296,3189.5,3189.4,1.59895]
[1764847350097,1.43240367,3189.5,3189.4,1.60265188]
[1764847350402,0.00280367,3189.5,3189.4,1.60265188]
[1764847350902,0.72100367,3189.5,3189.4,1.60265188]
[1764847351104,0.00280367,3189.5,3189.4,1.60265188]
[1764847351298,1.87890367,3189.5,3189.4,0.16045188]
[1764847351794,1.16750367,3189.5,3189.4,0.87635188]
[1764847352007,1.87890367,3189.5,3189.4,1.60265188]
[1764847352707,1.87890367,3189.5,3189.4,0.87635188]
[1764847353903,1.87890367,3189.5,3189.4,1.60265188]
[1764847354302,1.87890367,3189.5,3189.4,0.87635188]
[1764847354704,1.87890367,3189.5,3189.4,0.00370188]
[1764847355004,1.4325,3189.2,3189.1,0.0046994]
[1764847355308,1.8599,3189.0,3188.9,3.36458]
[1764847355799,1.8599,3189.0,3188.9,0.15678]
[1764847356006,1.8599,3189.0,3188.9,0.16067225]
[1764847358011,1.8599,3189.0,3188.9,0.00389225]
[1764847358198,1.8599,3189.0,3187.5,2.1835]
[1764847358199,1.4325,3188.3,3188.2,0.15681]
[1764847358403,1.4325,3188.1,3188.0,3.2078]
[1764847358811,1.8599,3188.5,3188.4,0.7209]
[1764847359014,42.6599,3188.5,3188.4,0.7209]
[1764847359316,42.6599,3188.5,3188.4,0.00399136]
[1764847359609,0.7145,3187.7,3187.3,0.87775]
[1764847359825,1.4325,3187.4,3187.3,1.60365]
[1764847360116,5.0677,3188.0,3187.9,0.7209]
[1764847360303,5.0677,3188.0,3187.9,1.4468]
[1764847360811,5.0677,3188.0,3187.9,1.4507125]
[1764847361414,5.0677,3188.0,3187.9,0.7248125]
[1764847361615,5.0677,3188.0,3187.9,0.0039125]
[1764847366217,1.4937,3187.3,3187.2,3.2078]
[1764847366418,1.4937,3186.9,3186.8,4.6433]
[1764847366915,0.7425,3186.9,3186.8,4.6433]
[1764847367112,0.74477026,3186.9,3186.8,4.64706222]
[1764847368116,1.49597026,3186.9,3186.8,4.64706222]
[1764847368315,1.49597026,3186.9,3186.8,3.21156222]
[1764847368522,1.49597026,3186.9,3186.8,3.94526222]
[1764847368914,1.49597026,3186.9,3186.8,4.64706222]
[1764847369717,0.74477026,3186.9,3186.8,4.80394222]
[1764847370024,0.00227026,3186.9,3186.8,4.80394222]
[1764847371324,0.74477026,3186.9,3186.8,4.80394222]
[1764847371516,1.49597026,3186.9,3186.8,4.80394222]
[1764847372720,0.74477026,3186.9,3186.8,4.80394222]
[1764847372922,0.00227026,3186.9,3186.8,4.80394222]
[1764847373128,1.49597026,3186.9,3186.8,4.80394222]
[1764847374230,0.00227026,3186.9,3186.8,4.80394222]
[1764847376025,0.00227026,3186.9,3186.8,1.59614222]
[1764847377027,1.49597026,3186.9,3186.8,1.59614222]
[1764847377929,0.74477026,3186.9,3186.8,1.59614222]
[1764847378128,1.49597026,3186.9,3186.8,1.59614222]
[1764847379026,0.74477026,3186.9,3186.8,1.59614222]
[1764847379531,1.49597026,3186.9,3186.8,1.59614222]
[1764847380432,1.49597026,3186.9,3186.8,0.00376222]